fUST/lending_fUST_20251114
["ID","MTS","AMOUNT","RATE_DAILY","PERIOD"]
[393894362,1763075443559,-28958.05545611,0.0005643,5]
[393894371,1763075446385,-636.58285388,0.00046,120]
[393894372,1763075446396,-5975.82000006,0.00046,120]
[393894373,1763075446457,-26.339953,0.00046,120]
[393894387,1763075449861,-1567.25719306,0.00046,120]
[393894388,1763075449871,-56729.47344191,0.0005643,5]
[393894389,1763075449881,-280834.7953,0.0005644,120]
[393894390,1763075449891,-402.27,0.000565,30]
[393894391,1763075449901,-1478.99,0.000565,14]
[393894392,1763075449912,-350.0,0.00057534,15]
[393894393,1763075449922,-366.0,0.00058058,120]
[393894394,1763075449932,-2000.0,0.00058718,21]
[393894395,1763075449942,-400.298992,0.00058904,15]
[393894396,1763075449952,-168500.8771,0.000592,120]
[393894397,1763075449963,-164.34,0.0006,120]
[393894398,1763075450087,-630.0027016,0.0006,30]
[393894399,1763075450097,-393.0,0.00060058,120]
[393894400,1763075450108,-431.2823332,0.00060239,2]
[393894401,1763075450122,-500.0,0.00060273,10]
[393894402,1763075450131,-500.0,0.00060273,14]
[393894403,1763075450140,-150.0,0.00060273,7]
[393894404,1763075450149,-523.1645309,0.00060273,12]
[393894405,1763075450160,-500.0,0.00060273,14]
[393894406,1763075450169,-500.0,0.00060273,120]
[393894407,1763075450179,-500.0,0.00060273,120]
[393894408,1763075450190,-404.39781575,0.00060273,120]
[393894409,1763075450200,-610.07,0.00060273,2]
[393894410,1763075450209,-500.0,0.00060273,120]
[393894411,1763075450219,-367.74024232,0.00060273,120]
[393894412,1763075450228,-302.84316289,0.00060273,120]
[393894413,1763075450239,-266.14931417,0.00060273,120]
[393894414,1763075450249,-469.34103288,0.00060273,120]
[393894415,1763075450260,-419.42736324,0.00060273,120]
[393894416,1763075450270,-427.14553794,0.00060273,120]
[393894417,1763075450281,-387.96364349,0.00060273,120]
[393894418,1763075450290,-397.45871435,0.00060273,120]
[393894419,1763075450300,-373.18572007,0.00060273,120]
[393894420,1763075450310,-354.11441804,0.00060273,120]
[393894421,1763075450319,-263.53424056,0.00060273,120]
[393894422,1763075450329,-495.97064784,0.00060273,120]
[393894423,1763075450339,-375.7661312,0.00060273,120]
[393894424,1763075450348,-500.0,0.00060273,120]
[393894425,1763075450357,-303.10785081,0.00060273,120]
[393894426,1763075450366,-353.79920909,0.00060273,120]
[393894427,1763075450375,-393.53704089,0.00060273,120]
[393894428,1763075450384,-426.99800988,0.00060273,120]
[393894429,1763075450394,-276.6983946,0.00060273,120]
[393894430,1763075450405,-421.52518161,0.00060273,120]
[393894431,1763075450416,-193.53706196,0.00060273,120]
[393894432,1763075450426,-177.5453823,0.00060273,120]
[393894433,1763075450435,-265.52931695,0.00060273,120]
[393894434,1763075450444,-221.50190868,0.00060273,120]
[393894435,1763075450453,-323.78841583,0.00060273,120]
[393894436,1763075450463,-385.26358469,0.00060273,7]
[393894437,1763075450472,-184.68754335,0.00060273,120]
[393894438,1763075450481,-426.97084108,0.00060273,120]
[393894439,1763075450491,-500.0,0.00060273,14]
[393894440,1763075450500,-231.47779029,0.00060273,120]
[393894441,1763075450509,-412.22769198,0.00060273,120]
[393894442,1763075450518,-313.96039456,0.00060273,120]
[393894443,1763075450527,-461.2485582,0.00060273,120]
[393894444,1763075450536,-417.49737715,0.00060273,120]
[393894445,1763075450545,-441.79085967,0.00060273,120]
[393894446,1763075450555,-500.0,0.00060273,120]
[393894447,1763075450564,-273.51866982,0.00060273,120]
[393894448,1763075450573,-375.0810147,0.00060273,120]
[393894449,1763075450583,-371.98983744,0.00060273,120]
[393894450,1763075450592,-300.86721482,0.00060273,120]
[393894451,1763075450601,-231.75298192,0.00060273,120]
[393894452,1763075450611,-479.53916181,0.00060273,120]
[393894453,1763075450619,-2235.92,0.00060273,120]
[393894454,1763075450629,-1000.0,0.00060273,2]
[393894455,1763075450637,-500.0,0.00060273,3]
[393894456,1763075450646,-232.15645304,0.00060273,120]
[393894457,1763075450655,-500.0,0.00060273,120]
[393894458,1763075450664,-253.82041033,0.00060273,120]
[393894459,1763075450673,-178.82981054,0.00060273,120]
[393894460,1763075450681,-380.24210283,0.00060273,120]
[393894461,1763075450690,-364.73543644,0.00060273,120]
[393894462,1763075450699,-11245.95,0.00060273,3]
[393894463,1763075450708,-460.0,0.00060273,120]
[393894464,1763075450717,-257.97748593,0.00060273,120]
[393894465,1763075450725,-434.49139621,0.00060273,120]
[393894466,1763075450734,-222.97836362,0.00060273,120]
[393894467,1763075450743,-185.37911794,0.00060273,120]
[393894468,1763075450752,-212.56409202,0.00060273,120]
[393894469,1763075450761,-442.7583678,0.00060273,120]
[393894470,1763075450770,-234.39257465,0.00060273,120]
[393894471,1763075450779,-452.72449376,0.00060273,120]
[393894472,1763075450790,-299.05599992,0.00060273,120]
[393894473,1763075450799,-235.56794442,0.00060273,120]
[393894474,1763075450809,-405.3913905,0.00060273,120]
[393894475,1763075450819,-480.0,0.00060273,120]
[393894476,1763075450829,-480.0,0.00060273,120]
[393894477,1763075450839,-342.65539098,0.00060273,120]
[393894478,1763075450848,-376.53497356,0.00060273,120]
[393894479,1763075450857,-223.8946208,0.00060273,120]
[393894480,1763075450866,-273.12722705,0.00060273,120]
[393894481,1763075450875,-500.0,0.00060273,120]
[393894482,1763075450885,-184.18707144,0.00060273,120]
[393894483,1763075450894,-500.0,0.00060273,120]
[393894484,1763075450904,-346.48237819,0.00060273,120]
[393894485,1763075450913,-367.18385589,0.00060273,120]
[393894486,1763075450922,-494.72215429,0.00060273,120]
[393894487,1763075450931,-502.65858154,0.00060821,10]
[393894488,1763075450940,-302.61912707,0.00060821,7]
[393894489,1763075450949,-500.0,0.00061095,14]
[393894490,1763075450958,-500.0,0.00061095,120]
[393894491,1763075450967,-500.0,0.00061095,120]
[393894492,1763075450976,-500.0,0.00061095,120]
[393894493,1763075450985,-501.04577557,0.00061095,14]
[393894494,1763075450994,-500.0,0.00061095,120]
[393894495,1763075451003,-2235.92,0.00061095,120]
[393894496,1763075451012,-1000.0,0.00061095,2]
[393894497,1763075451021,-500.0,0.00061095,3]
[393894498,1763075451029,-500.0,0.00061095,120]
[393894499,1763075451038,-11245.95,0.00061095,3]
[393894500,1763075451047,-500.0,0.00061095,120]
[393894501,1763075451056,-164.668734,0.00061644,2]
[393894502,1763075451065,-200.0,0.00061759,120]
[393894503,1763075451074,-457.63240752,0.00061917,120]
[393894504,1763075451084,-500.0,0.00061917,120]
[393894505,1763075451093,-614.14324689,0.00061917,120]
[393894506,1763075451102,-500.0,0.00061917,120]
[393894507,1763075451112,-2235.92,0.00061917,120]
[393894508,1763075451123,-1000.0,0.00061917,2]
[393894509,1763075451132,-500.0,0.00061917,3]
[393894510,1763075451141,-500.0,0.00061917,120]
[393894511,1763075451150,-11245.95,0.00061917,3]
[393894512,1763075451161,-500.0,0.00061917,120]
[393894513,1763075451170,-420.0,0.00062058,120]
[393894514,1763075451179,-500.0,0.00062739,120]
[393894515,1763075451190,-500.0,0.00062739,120]
[393894516,1763075451199,-2235.92,0.00062739,120]
[393894517,1763075451207,-1000.0,0.00062739,2]
[393894518,1763075451217,-500.0,0.00062739,3]
[393894519,1763075451227,-500.0,0.00062739,120]
[393894520,1763075451239,-11245.95,0.00062739,3]
[393894521,1763075451249,-500.0,0.00062739,120]
[393894522,1763075451259,-500.0,0.00063561,120]
[393894523,1763075451270,-500.0,0.00063561,120]
[393894524,1763075451279,-2235.92,0.00063561,120]
[393894525,1763075451289,-1000.0,0.00063561,2]
[393894526,1763075451299,-500.0,0.00063561,3]
[393894527,1763075451308,-500.0,0.00063561,120]
[393894528,1763075451318,-11245.95,0.00063561,3]
[393894529,1763075451329,-421.49787116,0.00063561,120]
[393894530,1763075451338,-192.31,0.000636,14]
[393894531,1763075451347,-402.27,0.000636,30]
[393894532,1763075451356,-1478.99,0.000636,14]
[393894533,1763075451365,-447.0,0.00064058,120]
[393894534,1763075451376,-500.0,0.00064383,120]
[393894535,1763075451385,-500.0,0.00064383,120]
[393894536,1763075451393,-2235.92,0.00064383,120]
[393894537,1763075451402,-1000.0,0.00064383,2]
[393894538,1763075451413,-500.0,0.00064383,120]
[393894539,1763075451422,-11245.95,0.00064383,3]
[393894540,1763075451431,-500.0,0.00065205,120]
[393894541,1763075451440,-500.0,0.00065205,120]
[393894542,1763075451449,-2235.92,0.00065205,120]
[393894543,1763075451458,-1000.0,0.00065205,2]
[393894544,1763075451467,-500.0,0.00065205,120]
[393894545,1763075451477,-11245.95,0.00065205,3]
[393894546,1763075451486,-500.0,0.00066027,120]
[393894547,1763075451495,-500.0,0.00066027,120]
[393894548,1763075451504,-2235.92,0.00066027,120]
[393894549,1763075451513,-1000.0,0.00066027,2]
[393894550,1763075451522,-500.0,0.00066027,120]
[393894551,1763075451531,-11245.95,0.00066027,3]
[393894552,1763075451540,-474.0,0.00066058,120]
[393894553,1763075451551,-239.38901312,0.00066849,120]
[393894554,1763075451560,-500.0,0.00066849,120]
[393894555,1763075451569,-2235.92,0.00066849,120]
[393894556,1763075451579,-1000.0,0.00066849,2]
[393894557,1763075451588,-500.0,0.00066849,120]
[393894558,1763075451597,-11245.95,0.00066849,3]
[393894559,1763075451606,-431.2823332,0.00067622,5]
[393894560,1763075451615,-500.0,0.00067671,120]
[393894561,1763075451623,-2235.92,0.00067671,120]
[393894562,1763075451632,-500.0,0.00067671,120]
[393894563,1763075451643,-11245.95,0.00067671,3]
[393894564,1763075451652,-501.0,0.00068058,120]
[393894565,1763075451663,-500.0,0.00068493,120]
[393894566,1763075451672,-2235.92,0.00068493,120]
[393894567,1763075451682,-500.0,0.00068493,120]
[393894568,1763075451691,-11245.95,0.00068493,3]
[393894569,1763075451700,-164.668734,0.00068493,2]
[393894570,1763075451710,-150.0,0.00069,120]
[393894571,1763075451718,-2000.0,0.00069145,35]
[393894572,1763075451727,-500.0,0.00069315,120]
[393894573,1763075451735,-2235.92,0.00069315,120]
[393894574,1763075451745,-500.0,0.00069315,120]
[393894575,1763075451755,-11245.95,0.00069315,3]
[393894576,1763075451764,-160.0,0.00069563,3]
[393894577,1763075451773,-5000.0,0.0007,120]
[393894578,1763075451782,-528.0,0.00070058,120]
[393894579,1763075451791,-483.61335246,0.00070136,120]
[393894580,1763075451800,-2235.92,0.00070136,120]
[393894581,1763075451809,-500.0,0.00070136,120]
[393894582,1763075451818,-11245.95,0.00070136,3]
[393894583,1763075451827,-192.31,0.000702,14]
[393894584,1763075451837,-402.27,0.000702,30]
[393894585,1763075451846,-1478.99,0.000702,14]
[393894586,1763075451860,-200.0,0.00070556,120]
[393894587,1763075451875,-2235.92,0.00070958,120]
[393894588,1763075451884,-500.0,0.00070958,120]
[393894589,1763075451893,-11245.95,0.00070958,3]
[393894590,1763075451902,-2235.92,0.0007178,120]
[393894591,1763075451911,-500.0,0.0007178,120]
[393894592,1763075451920,-11245.95,0.0007178,3]
[393894593,1763075451929,-512.22382607,0.00072058,120]
[393894594,1763075451939,-2235.92,0.00072602,120]
[393894595,1763075451947,-500.0,0.00072602,120]
[393894596,1763075451956,-11245.95,0.00072602,3]
[393894597,1763075451974,-1277495.40614005,0.0007326,60]
[393894598,1763075451985,-2235.92,0.00073424,120]
[393894599,1763075451994,-500.0,0.00073424,120]
[393894600,1763075452004,-11245.95,0.00073424,3]
[393894601,1763075452013,-2235.92,0.00074246,120]
[393894602,1763075452023,-482.25964469,0.00074246,120]
[393894603,1763075452032,-11245.95,0.00074246,3]
[393894604,1763075452041,-88888.0,0.00074344,120]
[393894605,1763075452051,-1000.0,0.00074443,120]
[393894606,1763075452061,-1608388.68125958,0.00074444,30]
[393894607,1763075452080,-714483.77972317,0.00074444,30]
[393894608,1763075456847,150.0,0.00034137,2]
[393894609,1763075457264,150.0,0.0003724,2]
[393894610,1763075457677,150.0,0.00040344,2]
[393894613,1763075480355,200.0,0.00039148,30]
[393894615,1763075491357,157.561033,0.000398,20]
[393894618,1763075524953,150.0,0.00034642,2]
[393894620,1763075525348,150.0,0.00037792,2]
[393894770,1763075552816,153.468296,0.00033324,20]
[393894781,1763075595481,150.0,0.00032692,2]
[393894782,1763075595868,43.36042299,0.00035664,2]
[393894783,1763075595899,106.63957701,0.00035664,2]
[393894787,1763075603479,2000.0,0.0004,30]
[393894791,1763075617571,309.10308501,0.00030876,2]
[393894792,1763075626473,258.87468452,0.00032495,30]
[393894794,1763075663832,150.0,0.00029885,2]
[393894795,1763075664233,150.0,0.00032602,2]
[393894796,1763075664642,150.0,0.00035319,2]
[393894797,1763075703335,162.7,0.0003288,120]
[393894798,1763075708416,161.93,0.00034089,30]
[393894799,1763075716516,197.78036741,0.00030876,2]
[393894800,1763075716872,176.11911306,0.00025243,2]
[393894801,1763075731116,150.0,0.00031534,2]
[393894802,1763075731309,168.17297,0.00033324,20]
[393894803,1763075731577,150.0,0.00034401,2]
[393894804,1763075731914,150.0,0.00039614,20]
[393894805,1763075732070,150.83098067,0.00039614,20]
[393894806,1763075749016,168.70911007,0.00030876,2]
[393894807,1763075762836,150.0,0.00039614,20]
[393894808,1763075763043,150.0,0.00039614,20]
[393894809,1763075763239,201.37670814,0.00039614,20]
[393894810,1763075767545,190.0,0.00035,120]
[393894811,1763075776269,208.0,0.00035,120]
[393894812,1763075781158,200.0,0.00039614,30]
[393894813,1763075801732,150.0,0.00028864,2]
[393894814,1763075802365,150.0,0.00031488,2]
[393894815,1763075802778,150.0,0.00034112,2]
[393894816,1763075813387,166.8584914,0.00025243,2]
[393894818,1763075821175,157.40495265,0.00039614,20]
[393894861,1763075835325,364.85792731,0.00039614,60]
[393894881,1763075840477,150.0,0.00039614,20]
[393894882,1763075840610,327.01474883,0.00039614,20]
[393894883,1763075840700,253.93112186,0.00039614,20]
[393894884,1763075841445,569.00131446,0.00039614,20]
[393894889,1763075850163,152.984744,0.00033324,20]
[393894890,1763075871435,150.0,0.00028848,2]
[393894891,1763075871843,150.0,0.00031471,2]
[393894892,1763075872253,150.0,0.00034094,2]
[393894893,1763075876289,150.0,0.00039614,20]
[393894894,1763075876489,210.02357,0.00039614,20]
[393894895,1763075885395,540.78863202,0.00039614,120]
[393894896,1763075888315,2000.0,0.00039614,20]
[393894897,1763075901465,382.02520773,0.000329,120]
[393894898,1763075902096,382.02520773,0.000339,120]
[393894899,1763075902817,382.02520773,0.000349,120]
[393894900,1763075903469,382.02520773,0.000359,120]
[393894901,1763075934397,391.42524547,0.00025243,2]
[393894902,1763075935029,391.42524547,0.00031237,2]
[393894903,1763075940475,150.0,0.00028811,2]
[393894904,1763075940905,150.0,0.00031431,2]
[393894905,1763075941328,150.0,0.0003405,2]
[393894906,1763075956948,300.0,0.000359,20]
[393894907,1763075958905,303.95859345,0.00025243,2]
[393894908,1763075966374,300.0,0.000359,20]
[393894909,1763075970232,153.468296,0.00033324,20]
[393894910,1763075971765,161.0,0.00034877,73]
[393894911,1763075972366,214.0,0.00029945,14]
[393894912,1763075976504,300.0,0.000359,20]
[393894913,1763075981870,160.0,0.000329,120]
[393894914,1763075983143,160.0,0.000339,120]
[393894915,1763075984596,160.0,0.000349,120]
[393894916,1763075986368,300.0,0.000359,7]
[393894917,1763075993916,160.0,0.00036,2]
[393894918,1763075996214,300.0,0.000359,7]
[393894919,1763076000217,487.69093618,0.00025205,2]
[393894920,1763076002657,153.07828241,0.0003573,10]
[393894922,1763076003132,170.4,0.00039614,20]
[393894923,1763076003161,281.41904587,0.00039614,30]
[393894924,1763076003189,252.67,0.00039614,60]
[393894925,1763076004305,256.75655889,0.0003573,10]
[393894926,1763076005737,300.0,0.000359,7]
[393894927,1763076012834,300.0,0.000359,20]
[393894928,1763076013933,150.0,0.00028893,2]
[393894929,1763076014345,150.0,0.0003152,2]
[393894930,1763076014879,150.0,0.00034146,2]
[393894931,1763076015085,300.0,0.000359,2]
[393894932,1763076016389,406.27027,0.00039614,60]
[393894933,1763076016685,406.27027,0.00039614,60]
[393894934,1763076016999,406.27027,0.00039614,60]
[393894935,1763076017303,406.27027,0.00039614,60]
[393894936,1763076017631,406.27027,0.00039614,60]
[393894937,1763076023886,265.09,0.000359,2]
[393894942,1763076084904,200.0,0.00039611,30]
[393894943,1763076085709,150.0,0.0002881,2]
[393894944,1763076086102,150.0,0.00031429,2]
[393894945,1763076086506,150.0,0.00034048,2]
[393894946,1763076093727,150.0,0.0002589,2]
[393894947,1763076094271,177.0,0.0002789,2]
[393894948,1763076094552,204.0,0.0002989,2]
[393894949,1763076094931,231.0,0.0003189,2]
[393894950,1763076095288,258.0,0.0003389,120]
[393894951,1763076095653,285.0,0.0003589,120]
[393894952,1763076108514,194.0,0.00039611,120]
[393894953,1763076109963,387.521238,0.00035983,2]
[393894969,1763076159516,150.0,0.00028822,2]
[393894970,1763076159936,150.0,0.00031442,2]
[393894971,1763076160808,150.0,0.00034062,2]
[393894976,1763076221086,191.01260387,0.000329,120]
[393894977,1763076221814,191.01260387,0.000339,120]
[393894978,1763076231013,150.0,0.00028902,2]
[393894979,1763076231417,150.0,0.0003153,2]
[393894980,1763076231824,150.0,0.00034157,2]
[393894981,1763076239144,321.89,0.00039611,20]
[393894982,1763076267826,641.44,0.00035,15]
[393894983,1763076277276,569.00131446,0.00039611,20]
[393894984,1763076277734,157.40495265,0.00039611,20]
[393894985,1763076278955,150.0,0.00039611,20]
[393894986,1763076279063,150.0,0.00039611,20]
[393894987,1763076279482,150.0,0.00039611,20]
[393894988,1763076279665,150.0,0.00039611,20]
[393894989,1763076279865,150.0,0.00039611,20]
[393894990,1763076280071,150.0,0.00039611,20]
[393894991,1763076280266,150.0,0.00039611,20]
[393894992,1763076280467,150.0,0.00039611,20]
[393894993,1763076280659,216.16238067,0.00039611,20]
[393894994,1763076282325,150.0,0.00039611,20]
[393894995,1763076284571,364.85792731,0.00039611,60]
[393894996,1763076296271,327.01474883,0.00039611,20]
[393894997,1763076297277,357.07402081,0.00030876,2]
[393894998,1763076297907,357.07402081,0.00033787,2]
[393894999,1763076300263,150.0,0.00028881,2]
[393895000,1763076300659,150.0,0.00031507,2]
[393895001,1763076301115,150.0,0.00034133,2]
[393895002,1763076303204,170.4,0.00039611,20]
[393895003,1763076303234,281.41904587,0.00039611,30]
[393895004,1763076304212,252.67,0.00039611,60]
[393895005,1763076304731,540.78863202,0.00039611,120]
[393895007,1763076329493,569.00131446,0.00039608,20]
[393895008,1763076331132,364.85792731,0.00039608,60]
[393895009,1763076331445,327.01474883,0.00039608,20]
[393895023,1763076350797,260.45196039,0.00035616,2]
[393895025,1763076361431,700.0,0.00036,2]
[393895026,1763076366107,150.0,0.00028859,2]
[393895027,1763076366526,150.0,0.00031482,2]
[393895028,1763076366911,150.0,0.00034106,2]
[393895029,1763076367195,177.0,0.00035,120]
[393895031,1763076380404,200.0,0.00039608,30]
[393895032,1763076381920,6117.4221055,0.00035122,2]
[393895033,1763076393809,157.40495265,0.00039608,20]
[393895034,1763076393840,-165.19966219,0.00035122,2]
[393895035,1763076399939,-260.38468433,0.00035122,2]
[393895036,1763076402030,-282.0500135,0.00035122,2]
[393895037,1763076403130,-36.95740398,0.00035122,2]
[393895038,1763076403150,-196.11910904,0.00036469,2]
[393895039,1763076403170,-400.0,0.00036567,2]
[393895040,1763076403190,-1600.0,0.00036568,3]
[393895041,1763076403210,-939.39242014,0.00036568,3]
[393895042,1763076403978,812.61351995,0.00039608,20]
[393895043,1763076407447,569.00131446,0.00039608,20]
[393895044,1763076410855,364.85792731,0.00039608,60]
[393895045,1763076411848,150.0,0.00039608,20]
[393895046,1763076412040,150.0,0.00039608,20]
[393895047,1763076412245,150.0,0.00039608,20]
[393895048,1763076412449,150.0,0.00039608,20]
[393895050,1763076412657,150.0,0.00039608,20]
[393895051,1763076412938,150.0,0.00039608,20]
[393895052,1763076413042,150.0,0.00039608,20]
[393895053,1763076413255,150.0,0.00039608,20]
[393895054,1763076413447,150.0,0.00039608,20]
[393895055,1763076413646,216.16238067,0.00039608,20]
[393895056,1763076422988,540.78863202,0.00039608,120]
[393895058,1763076430540,522.19321411,0.00039608,30]
[393895059,1763076431650,150.0,0.00028816,2]
[393895060,1763076436422,500.83556389,0.00039608,120]
[393895061,1763076442234,764316.96601213,0.00039608,20]
[393895062,1763076442402,316.82748908,0.00039608,30]
[393895063,1763076455098,244.5303547,0.00039608,30]
[393895064,1763076455189,586.83597442,0.00039608,120]
[393895065,1763076456662,284.64611369,0.00039608,120]
[393895066,1763076460163,165.82163755,0.00039608,30]
[393895067,1763076467755,154.30463252,0.00039608,21]
[393895069,1763076476945,189.4,0.00035,2]
[393895070,1763076480452,657.85649502,0.00039608,30]
[393895071,1763076482251,208.65278665,0.00039608,120]
[393895073,1763076490012,734.84861961,0.00039608,60]
[393895076,1763076493113,194.03865715,0.00039608,120]
[393895077,1763076498884,209.48965382,0.00039608,21]
[393895078,1763076499430,235.08615024,0.00039608,120]
[393895079,1763076499650,592.21661028,0.00025243,2]
[393895080,1763076500344,592.21661028,0.00031237,2]
[393895081,1763076500815,561.67352957,0.00039608,30]
[393895082,1763076501385,-418.40383622,0.00036,30]
[393895083,1763076501414,-265.65462437,0.0003624,2]
[393895084,1763076501448,-660.60757986,0.00036568,3]
[393895085,1763076501476,-3284.02989909,0.00036569,2]
[393895086,1763076501508,-168.59697853,0.00036685,120]
[393895087,1763076501538,-5.42416386,0.00036695,2]
[393895088,1763076501801,240.50496856,0.00039608,30]
[393895089,1763076501969,240.82074905,0.00039608,120]
[393895090,1763076502407,171.44793711,0.00039608,20]
[393895091,1763076502926,25000.0,0.0003,30]
[393895092,1763076502952,25000.0,0.0003,30]
[393895093,1763076502979,25000.0,0.0003,30]
[393895094,1763076503007,25000.0,0.0003,30]
[393895095,1763076503034,25000.0,0.0003,30]
[393895096,1763076503061,23103.19788116,0.0003,30]
[393895098,1763076503454,250.31627282,0.00039608,120]
[393895099,1763076504117,282.73504503,0.00039608,30]
[393895100,1763076504441,327.79225239,0.00039608,90]
[393895101,1763076505298,349.91026429,0.00039608,120]
[393895102,1763076505354,306.2113708,0.00039608,120]
[393895103,1763076505658,241.96529558,0.00025243,2]
[393895105,1763076506135,283.11479268,0.00039608,30]
[393895106,1763076507001,-355.71740337,0.0002999,3]
[393895107,1763076507346,-158.00259663,0.0002999,3]
[393895108,1763076507413,-8554.74742232,0.0003,30]
[393895109,1763076508223,190.01602792,0.00039608,120]
[393895110,1763076508767,230.39323602,0.00039608,30]
[393895111,1763076508846,226.6210235,0.00039608,30]
[393895112,1763076508963,374.2375936,0.00039608,120]
[393895113,1763076509777,208.58758005,0.00039608,30]
[393895114,1763076509876,1649.913924,0.00026,30]
[393895115,1763076510068,440.88779902,0.00039608,120]
[393895116,1763076510105,375.63384114,0.00039608,120]
[393895117,1763076510226,223.16303583,0.00039608,120]
[393895118,1763076510546,-10000.01,0.0003,30]
[393895119,1763076510760,-10000.01,0.0003,30]
[393895120,1763076510909,-10000.01,0.0003,30]
[393895121,1763076510946,-361.59112517,0.0003,30]
[393895122,1763076511043,-10000.01,0.0003,30]
[393895123,1763076511269,327.62249328,0.00039608,120]
[393895124,1763076511288,-10000.01,0.0003,30]
[393895125,1763076511317,-10000.01,0.0003,30]
[393895126,1763076511445,-10000.01,0.0003,30]
[393895127,1763076511475,183.71767009,0.00039608,30]
[393895128,1763076511575,-10000.01,0.0003,30]
[393895129,1763076512069,406.73007897,0.00039608,30]
[393895130,1763076512264,306.45235762,0.00039608,60]
[393895131,1763076512364,200.45355352,0.00039608,120]
[393895132,1763076512403,499.29020254,0.00039608,60]
[393895133,1763076512545,384.55610463,0.00039608,60]
[393895134,1763076512625,324.45114894,0.00039608,30]
[393895135,1763076512659,168.02039385,0.00039608,120]
[393895136,1763076512890,228.84054808,0.00025243,2]
[393895137,1763076513019,-272.03248709,0.0003,30]
[393895138,1763076513803,348.32944254,0.00039608,30]
[393895139,1763076513900,204.25566182,0.00039608,30]
[393895140,1763076514479,226.76090504,0.00039608,120]
[393895141,1763076514771,388.28482536,0.00039608,120]
[393895142,1763076514883,293.16608393,0.00039608,60]
[393895143,1763076515072,410.00004093,0.00039608,20]
[393895144,1763076515216,213.03999907,0.00039608,120]
[393895146,1763076515520,472.87799217,0.00039608,120]
[393895148,1763076515962,477.87814561,0.00039608,120]
[393895149,1763076516003,325.89288406,0.00039608,20]
[393895150,1763076516365,494.5005909,0.00039608,120]
[393895151,1763076516405,287.68989835,0.00039608,120]
[393895152,1763076516484,-2365.00515181,0.000299,2]
[393895153,1763076516635,-2558.73969638,0.0002999,10]
[393895154,1763076516685,-152.52030362,0.0002999,10]
[393895155,1763076516723,-355.71,0.0002999,3]
[393895156,1763076516776,-9288.59,0.0003,30]
[393895157,1763076516880,355.75266595,0.00039608,120]
[393895158,1763076516910,1050.49997557,0.00039608,120]
[393895159,1763076517382,360.52588426,0.00039608,90]
[393895160,1763076517522,364.41265841,0.00039608,120]
[393895161,1763076517658,600.0,0.00027,14]
[393895162,1763076518138,186.59472545,0.00039608,30]
[393895163,1763076519061,161.79927719,0.00039608,120]
[393895164,1763076519136,421.02566033,0.00039608,30]
[393895165,1763076519229,349.07481572,0.00039608,60]
[393895166,1763076519507,160.92080339,0.00039608,120]
[393895167,1763076519643,336.40740549,0.00039608,30]
[393895169,1763076519707,153.0261583,0.00039608,120]
[393895170,1763076520032,-200.51844419,0.0003,30]
[393895171,1763076520624,186.910702,0.00029,60]